Workbook

Sheet Sheet1
B1: Exer. 9 - Simulação Automática
E2: Min | F2: Max
C3: Tempo Vida | E3: 2 | F3: 5
C4: Nº Acidentes/mês | E4: =1/12 -> 0.08333333333 | G4: Período Revisão (meses) | K4: 3
C5: Custo Peça | E5: 100 | G5: Intervalo mínimo Subst. Peça | K5: 1.5
C6: Custo/Inspecção/Ver | E6: 1000 | G6: Nº de Runs | K6: 150
C7: Custo/paragem | E7: 2000 | U7: Custos Mensais
T8: Peças | U8: Revisões | V8: Paragens | W8: Totais
B9: Tempo | C9: Tipo | D9: Subst. | E9: Prox. Inter. acidentes | G9: Prox | H9: Bom Func. Peça | J9: Prox. | K9: Próx. | L9: Próximo | M9: Tipo | N9: Nº | O9: Nº | P9: Nº | Q9: Nº | S9: D.Pad. | T9: =STDEV(T11:T160) -> 5.078516511 | U9: =STDEV(U11:U160) -> 15.02986229 | V9: =STDEV(V11:V160) -> 137.1722095 | W9: =STDEV(W11:W160) -> 136.4384134
C10: Acontec. | D10: Peça? | E10: NPA | F10: Meses | G10: Acidente | H10: NPA | I10: Meses | J10: Avaria | K10: Revisão | L10: Acontec. | M10: Acontec. | N10: Peças | O10: Revis. | P10: Ava. | Q10: Ac. | S10: Média | T10: =AVERAGE(T11:T160) -> 42.74507588 | U10: =AVERAGE(U11:U160) -> 322.7212709 | V10: =AVERAGE(V11:V160) -> 485.874127 | W10: =AVERAGE(W11:W160) -> 851.3404737
B11: 0 | C11: Acidente | D11: Sim | E11: =IF(C11="Acidente", RAND(),"") -> 0.7195016015 | F11: =IF(E11="","",-1/$E$4*LN(E11)) -> 3.950358321 | G11: =+F11 -> 3.950358321 | H11: =RAND() -> 0.1837637242 | I11: =IF(H11="",0,$E$3+H11*($F$3-$E$3)) -> 2.551291172 | J11: =+I11 -> 2.551291172 | K11: =+$K$4 -> 3 | L11: =MIN(G11,J11,K11) -> 2.551291172 | M11: =IF(G11<K11,"Acidente",IF(I11<K11,"Avaria","Revisão")) -> Avaria | N11: =IF(D11="Sim",1,0) -> 1 | O11: =IF(C11="Revisão",1,0) -> 0 | P11: =IF(C11="Avaria",1,0) -> 0 | Q11: =IF(C11="Acidente",1,0) -> 1 | T11: =+F28 -> 43.33333333 | U11: =+F29 -> 333.3333333 | V11: =+F30 -> 400 | W11: =+F31 -> 776.6666667
B12: =+L11 -> 2.551291172 | C12: Avaria | D12: =IF(C12="Acidente","Sim",IF(C12="Avaria","Sim",IF(C12="Revisão",IF((B12-B11)>$K$5,"Sim","Não")))) -> Sim | G12: =IF(F12="",G11,+G11+F12) -> 3.950358321 | H12: =IF(D12="Sim",RAND(),IF(J11>L11,"",RAND())) -> 0.5727255453 | I12: =IF(H12="",0,$E$3+H12*($F$3-$E$3)) -> 3.718176636 | J12: =IF(D12="Sim",B12+I12,IF(J11>K11,J11,B12+I12)) -> 6.269467808 | K12: =IF(B12<K11,K11,K11+$K$4) -> 3 | L12: 3 | M12: =IF(G12<=L12,"Acidente",IF(J12<K12,"Avaria","Revisão")) -> Revisão | N12: =IF(D12="Sim",1,0) -> 1 | O12: =IF(C12="Revisão",1,0) -> 0 | P12: =IF(C12="Avaria",1,0) -> 1 | Q12: =IF(C12="Acidente",1,0) -> 0 | S12: 1 | T12: 39.39393939 | U12: 333.3333333 | V12: 303.030303 | W12: 675.7575758
B13: 3 | C13: Revisão | D13: =IF(C13="Acidente","Sim",IF(C13="Avaria","Sim",IF(C13="Revisão",IF((B13-B12)>$K$5,"Sim","Não")))) -> Não | G13: 3.950358321 | H13: =IF(D13="Sim",RAND(),IF(J12>L12,"",RAND())) ->  | I13: =IF(H13="",0,$E$3+H13*($F$3-$E$3)) -> 0 | J13: =IF(D13="Sim",B13+I13,IF(J12>K12,J12,B13+I13)) -> 6.269467808 | K13: =IF(B13<K12,K12,K12+$K$4) -> 6 | L13: 3.950358321 | M13: Acidente | N13: 0 | O13: 1 | P13: 0 | Q13: 0 | S13: =+S12+1 -> 2 | T13: 46.66666667 | U13: 333.3333333 | V13: 400 | W13: 780
B14: 3.950358321 | C14: Acidente | D14: Sim | E14: 0.7761904558 | F14: 3.040288274 | G14: 6.990646595 | H14: 0.322439135 | I14: 2.967317405 | J14: 6.917675726 | K14: 6 | L14: 6 | M14: Revisão | N14: 1 | O14: 0 | P14: 0 | Q14: 1 | S14: =+S13+1 -> 3 | T14: 45.83333333 | U14: 333.3333333 | V14: 666.6666667 | W14: 1045.833333
B15: 6 | C15: Revisão | D15: Sim | G15: 6.990646595 | H15: 0.9081809162 | I15: 4.724542749 | J15: 10.72454275 | K15: 9 | L15: 6.990646595 | M15: Acidente | N15: 1 | O15: 1 | P15: 0 | Q15: 0 | S15: 4 | T15: 38.16253936 | U15: 318.0211614 | V15: 381.6253936 | W15: 737.8090944
B16: 6.990646595 | C16: Acidente | D16: Sim | E16: 0.1022864045 | F16: 27.35974216 | G16: 34.35038875 | H16: 0.3247460967 | I16: 2.97423829 | J16: 9.964884886 | K16: 9 | L16: 9 | M16: Revisão | N16: 1 | O16: 0 | P16: 0 | Q16: 1 | S16: 5 | T16: 48.14814815 | U16: 333.3333333 | V16: 518.5185185 | W16: 900
B17: 9 | C17: Revisão | D17: Sim | G17: 34.35038875 | H17: 0.3784454489 | I17: 3.135336347 | J17: 12.13533635 | K17: 12 | L17: 12 | M17: Revisão | N17: 1 | O17: 1 | P17: 0 | Q17: 0 | S17: 6 | T17: 48.06852455 | U17: 309.0119435 | V17: 480.6852455 | W17: 837.7657135
B18: 12 | C18: Revisão | D18: Sim | G18: 34.35038875 | H18: 0.1648255743 | I18: 2.494476723 | J18: 14.49447672 | K18: 15 | L18: 14.49447672 | M18: =IF(G18<(L18+0.09),"Acidente",IF(J18<K18,"Avaria","Revisão")) -> Avaria | N18: 1 | O18: 1 | P18: 0 | Q18: 0 | S18: 7 | T18: 37.03703704 | U18: 296.2962963 | V18: 592.5925926 | W18: 925.9259259
B19: =+L18 -> 14.49447672 | C19: =+M18 -> Avaria | D19: Sim | E19: =IF(C19="Acidente", RAND(),"") ->  | F19: =IF(E19="","",-1/$E$4*LN(E19)) ->  | G19: =IF(F19="",G18,+G18+F19) -> 34.35038875 | H19: =IF(D19="Sim",RAND(),IF(J18>L18,"",RAND())) -> 0.9035547253 | I19: 4.710664176 | J19: =IF(D19="Sim",B19+I19,IF(J18>K18,J18,B19+I19)) -> 19.2051409 | K19: 15 | L19: =MIN(G19,J19,K19) -> 15 | M19: =IF(G19<(L19+0.09),"Acidente",IF(J19<K19,"Avaria","Revisão")) -> Revisão | N19: =IF(D19="Sim",1,0) -> 1 | O19: =IF(C19="Revisão",1,0) -> 0 | P19: =IF(C19="Avaria",1,0) -> 1 | Q19: =IF(C19="Acidente",1,0) -> 0 | S19: 8 | T19: 36.66666667 | U19: 333.3333333 | V19: 400 | W19: 770
B20: 15 | C20: Revisão | D20: Não | G20: 34.35038875 | I20: 0 | J20: 19.2051409 | K20: 18 | L20: 18 | M20: Revisão | N20: 0 | O20: 1 | P20: 0 | Q20: 0 | S20: 9 | T20: 42.78653149 | U20: 320.8989862 | V20: 499.1762007 | W20: 862.8617183
B21: 18 | C21: Revisão | D21: Sim | G21: 34.35038875 | H21: 0.8597736505 | I21: 4.579320952 | J21: 22.57932095 | K21: 21 | L21: 21 | M21: Revisão | N21: 1 | O21: 1 | P21: 0 | Q21: 0 | S21: 10 | T21: 40.09746687 | U21: 300.7310016 | V21: 467.8037802 | W21: 808.6322486
B22: 21 | C22: Revisão | D22: Sim | G22: 34.35038875 | H22: 0.2593633049 | I22: 2.778089915 | J22: 23.77808991 | K22: 24 | L22: 23.77808991 | M22: Avaria | N22: 1 | O22: 1 | P22: 0 | Q22: 0 | S22: 11 | T22: 40 | U22: 333.3333333 | V22: 400 | W22: 773.3333333
B23: 23.77808991 | C23: Avaria | D23: Sim | G23: 34.35038875 | H23: 0.6280101944 | I23: 3.884030583 | J23: 27.6621205 | K23: 24 | L23: 24 | M23: Revisão | N23: 1 | O23: 0 | P23: 1 | Q23: 0 | S23: 12 | T23: 40.74074074 | U23: 333.3333333 | V23: 518.5185185 | W23: 892.5925926
B24: 24 | C24: Revisão | D24: Não | G24: 34.35038875 | I24: 0 | J24: 27.6621205 | K24: 27 | L24: 27 | M24: Revisão | N24: 0 | O24: 1 | P24: 0 | Q24: 0 | S24: 13 | T24: 41.66666667 | U24: 333.3333333 | V24: 222.2222222 | W24: 597.2222222
B25: 27 | C25: Revisão | D25: Sim | G25: 34.35038875 | H25: 0.811361551 | I25: 4.434084653 | J25: 31.43408465 | K25: 30 | L25: 30 | M25: Revisão | N25: 1 | O25: 1 | P25: 0 | Q25: 0 | S25: 14 | T25: 46.27485362 | U25: 308.4990242 | V25: 616.9980483 | W25: 971.7719261
B26: 30 | C26: Revisão | D26: Sim | E26: =IF(C26="Acidente", RAND(),"") ->  | G26: 34.35038875 | H26: 0.7127363738 | I26: 4.138209121 | J26: 34.13820912 | K26: 33 | L26: 33 | M26: =IF(G26<(L26+0.09),"Acidente",IF(J26<K26,"Avaria","Revisão")) -> Revisão | N26: 1 | O26: 1 | P26: 0 | Q26: 0 | S26: 15 | T26: 43.33333333 | U26: 333.3333333 | V26: 400 | W26: 776.6666667
E27: Total | F27: Mês | N27: =SUM(N11:N26) -> 13 | O27: =SUM(O11:O26) -> 10 | P27: =SUM(P11:P26) -> 3 | Q27: =SUM(Q11:Q26) -> 3 | S27: 16 | T27: 43.29267324 | U27: 309.2333803 | V27: 371.0800564 | W27: 723.6061099
B28: Custo das peças | E28: =N27*E5 -> 1300 | F28: =+E28/$B$26 -> 43.33333333 | H28: Intervalo de Confiança a | K28: 0.95 | S28: 17 | T28: 40.86010797 | U28: 306.4508098 | V28: 476.7012597 | W28: 824.0121774
B29: Custo das revisões | E29: =+O27*E6 -> 10000 | F29: =+E29/$B$26 -> 333.3333333 | I29: Custos Mensais Totais | S29: 18 | T29: 39.39393939 | U29: 333.3333333 | V29: 303.030303 | W29: 675.7575758
B30: Custos De paragens | E30: =+E7*(P27+Q27) -> 12000 | F30: =+E30/$B$26 -> 400 | S30: 19 | T30: 44.44444444 | U30: 333.3333333 | V30: 518.5185185 | W30: 896.2962963
B31: Custo Total | E31: =+E28+E29+E30 -> 23300 | F31: =+E31/$B$26 -> 776.6666667 | H31: Limite Inferior | K31: Limite Superior | S31: 20 | T31: 45.83333333 | U31: 333.3333333 | V31: 666.6666667 | W31: 1045.833333
H32: =+$W$10-$W$9/SQRT($S$160+1)*TINV((1-$K$28)/2,$S$160) -> 826.1160657 | K32: =+$W$10+$W$9/SQRT($S$160+1)*TINV((1-$K$28)/2,$S$160) -> 876.5648818 | S32: 21 | T32: 40 | U32: 333.3333333 | V32: 400 | W32: 773.3333333
S33: 22 | T33: 37.03703704 | U33: 333.3333333 | V33: 518.5185185 | W33: 888.8888889
S34: 23 | T34: 37.03703704 | U34: 333.3333333 | V34: 518.5185185 | W34: 888.8888889
S35: 24 | T35: 41.76591419 | U35: 313.2443564 | V35: 487.2689989 | W35: 842.2792695
S36: 25 | T36: 38.46153846 | U36: 307.6923077 | V36: 205.1282051 | W36: 551.2820513
S37: 26 | T37: 45.74688635 | U37: 304.9792423 | V37: 609.9584846 | W37: 960.6846133
S38: 27 | T38: 40 | U38: 333.3333333 | V38: 400 | W38: 773.3333333
S39: 28 | T39: 43.33333333 | U39: 333.3333333 | V39: 400 | W39: 776.6666667
S40: 29 | T40: 54.16666667 | U40: 333.3333333 | V40: 666.6666667 | W40: 1054.166667
S41: 30 | T41: 44.44444444 | U41: 333.3333333 | V41: 518.5185185 | W41: 896.2962963
S42: 31 | T42: 40.10525566 | U42: 300.7894174 | V42: 467.8946494 | W42: 808.7893225
S43: 32 | T43: 46.66666667 | U43: 333.3333333 | V43: 400 | W43: 780
S44: 33 | T44: 43.33333333 | U44: 333.3333333 | V44: 400 | W44: 776.6666667
S45: 34 | T45: 40.555106 | U45: 304.163295 | V45: 473.1429033 | W45: 817.8613042
S46: 35 | T46: 39.42923891 | U46: 303.3018378 | V46: 363.9622053 | W46: 706.693282
S47: 36 | T47: 40 | U47: 333.3333333 | V47: 400 | W47: 773.3333333
S48: 37 | T48: 44.95599911 | U48: 299.7066608 | V48: 599.4133215 | W48: 944.0759814
S49: 38 | T49: 40.45481408 | U49: 330.9939334 | V49: 514.8794519 | W49: 886.3281993
S50: 39 | T50: 54.16666667 | U50: 333.3333333 | V50: 666.6666667 | W50: 1054.166667
S51: 40 | T51: 36.36363636 | U51: 333.3333333 | V51: 303.030303 | W51: 672.7272727
S52: 41 | T52: 42.01393455 | U52: 294.0975419 | V52: 756.2508219 | W52: 1092.362298
S53: 42 | T53: 37.5841376 | U53: 300.6731008 | V53: 601.3462017 | W53: 939.6034401
S54: 43 | T54: 46.78831004 | U54: 297.7437912 | V54: 765.6268915 | W54: 1110.158993
S55: 44 | T55: 63.41392334 | U55: 292.6796462 | V55: 975.5988206 | W55: 1331.69239
S56: 45 | T56: 58.33333333 | U56: 333.3333333 | V56: 666.6666667 | W56: 1058.333333
S57: 46 | T57: 40.74074074 | U57: 333.3333333 | V57: 518.5185185 | W57: 892.5925926
S58: 47 | T58: 43.33333333 | U58: 333.3333333 | V58: 400 | W58: 776.6666667
S59: 48 | T59: 41.03780427 | U59: 298.4567583 | V59: 596.9135167 | W59: 936.4080793
S60: 49 | T60: 40 | U60: 333.3333333 | V60: 400 | W60: 773.3333333
S61: 50 | T61: 40 | U61: 333.3333333 | V61: 400 | W61: 773.3333333
S62: 51 | T62: 51.85185185 | U62: 296.2962963 | V62: 592.5925926 | W62: 940.7407407
S63: 52 | T63: 44.44444444 | U63: 333.3333333 | V63: 518.5185185 | W63: 896.2962963
S64: 53 | T64: 37.29540226 | U64: 310.7950188 | V64: 372.9540226 | W64: 721.0444437
S65: 54 | T65: 37.03703704 | U65: 333.3333333 | V65: 518.5185185 | W65: 888.8888889
S66: 55 | T66: 37.56140524 | U66: 313.0117103 | V66: 375.6140524 | W66: 726.187168
S67: 56 | T67: 39.39393939 | U67: 333.3333333 | V67: 303.030303 | W67: 675.7575758
S68: 57 | T68: 36.36363636 | U68: 333.3333333 | V68: 303.030303 | W68: 672.7272727
S69: 58 | T69: 50 | U69: 333.3333333 | V69: 666.6666667 | W69: 1050
S70: 59 | T70: 37.03703704 | U70: 333.3333333 | V70: 518.5185185 | W70: 888.8888889
S71: 60 | T71: 44.44444444 | U71: 333.3333333 | V71: 518.5185185 | W71: 896.2962963
S72: 61 | T72: 48.14814815 | U72: 333.3333333 | V72: 518.5185185 | W72: 900
S73: 62 | T73: 44.85039878 | U73: 310.5027608 | V73: 483.0042946 | W73: 838.3574542
S74: 63 | T74: 36.36363636 | U74: 333.3333333 | V74: 303.030303 | W74: 672.7272727
S75: 64 | T75: 37.03703704 | U75: 333.3333333 | V75: 518.5185185 | W75: 888.8888889
S76: 65 | T76: 48.14814815 | U76: 333.3333333 | V76: 518.5185185 | W76: 900
S77: 66 | T77: 40.21047268 | U77: 309.3113283 | V77: 371.173594 | W77: 720.695395
S78: =+S77+1 -> 67 | T78: 52.38095238 | U78: 333.3333333 | V78: 857.1428571 | W78: 1242.857143
S79: 68 | T79: 36.78845629 | U79: 300.9964606 | V79: 468.2167165 | W79: 806.0016334
S80: 69 | T80: 55.55555556 | U80: 333.3333333 | V80: 518.5185185 | W80: 907.4074074
S81: 70 | T81: 36.66666667 | U81: 333.3333333 | V81: 400 | W81: 770
S82: 71 | T82: 40 | U82: 333.3333333 | V82: 400 | W82: 773.3333333
S83: 72 | T83: 43.48060606 | U83: 304.3642424 | V83: 782.650909 | W83: 1130.495757
S84: 73 | T84: 50 | U84: 333.3333333 | V84: 666.6666667 | W84: 1050
S85: 74 | T85: 51.85185185 | U85: 333.3333333 | V85: 518.5185185 | W85: 903.7037037
S86: 75 | T86: 37.3349041 | U86: 305.4673972 | V86: 475.1715068 | W86: 817.9738081
S87: 76 | T87: 40.74074074 | U87: 333.3333333 | V87: 518.5185185 | W87: 892.5925926
S88: 77 | T88: 44.44444444 | U88: 333.3333333 | V88: 518.5185185 | W88: 896.2962963
S89: 78 | T89: 44.13068764 | U89: 305.5201452 | V89: 475.2535592 | W89: 824.9043921
S90: 79 | T90: 39.39393939 | U90: 333.3333333 | V90: 303.030303 | W90: 675.7575758
S91: 80 | T91: 40 | U91: 333.3333333 | V91: 400 | W91: 773.3333333
S92: 81 | T92: 36.66666667 | U92: 333.3333333 | V92: 400 | W92: 770
S93: 82 | T93: 37.00139246 | U93: 317.1547925 | V93: 211.4365284 | W93: 565.5927133
S94: 83 | T94: 48.14814815 | U94: 333.3333333 | V94: 518.5185185 | W94: 900
S95: 84 | T95: 43.17023826 | U95: 308.3588447 | V95: 370.0306137 | W95: 721.5596966
S96: 85 | T96: 42.42424242 | U96: 333.3333333 | V96: 303.030303 | W96: 678.7878788
S97: 86 | T97: 44.59079719 | U97: 297.2719813 | V97: 594.5439626 | W97: 936.406741
S98: 87 | T98: 45.83333333 | U98: 333.3333333 | V98: 666.6666667 | W98: 1045.833333
S99: 88 | T99: 40.74074074 | U99: 296.2962963 | V99: 592.5925926 | W99: 929.6296296
S100: 89 | T100: 40 | U100: 333.3333333 | V100: 400 | W100: 773.3333333
S101: 90 | T101: 48.37484487 | U101: 260.4799339 | V101: 669.8055444 | W101: 978.6603232
S102: 91 | T102: 37.03703704 | U102: 333.3333333 | V102: 518.5185185 | W102: 888.8888889
S103: 92 | T103: 43.14905057 | U103: 308.2075041 | V103: 369.8490049 | W103: 721.2055596
S104: 93 | T104: 43.42117129 | U104: 315.7903367 | V104: 631.5806734 | W104: 990.7921814
S105: 94 | T105: 44.03119721 | U105: 304.8313653 | V105: 474.1821238 | W105: 823.0446864
S106: 95 | T106: 40.74074074 | U106: 333.3333333 | V106: 518.5185185 | W106: 892.5925926
S107: 96 | T107: 42.42424242 | U107: 333.3333333 | V107: 303.030303 | W107: 678.7878788
S108: 97 | T108: 40.74074074 | U108: 333.3333333 | V108: 518.5185185 | W108: 892.5925926
S109: 98 | T109: 38.88888889 | U109: 333.3333333 | V109: 222.2222222 | W109: 594.4444444
S110: 99 | T110: 44.44444444 | U110: 333.3333333 | V110: 518.5185185 | W110: 896.2962963
S111: 100 | T111: 40.74074074 | U111: 333.3333333 | V111: 518.5185185 | W111: 892.5925926
S112: 101 | T112: 44.44444444 | U112: 333.3333333 | V112: 518.5185185 | W112: 896.2962963
S113: 102 | T113: 39.39393939 | U113: 333.3333333 | V113: 303.030303 | W113: 675.7575758
S114: 103 | T114: 44.44444444 | U114: 296.2962963 | V114: 592.5925926 | W114: 933.3333333
S115: 104 | T115: 49.40044861 | U115: 304.0027607 | V115: 608.0055214 | W115: 961.4087307
S116: 105 | T116: 41.16265024 | U116: 308.7198768 | V116: 480.2309195 | W116: 830.1134466
S117: 106 | T117: 41.66666667 | U117: 333.3333333 | V117: 222.2222222 | W117: 597.2222222
S118: 107 | T118: 42.09488348 | U118: 315.7116261 | V118: 491.1069739 | W118: 848.9134834
S119: 108 | T119: 40.74074074 | U119: 333.3333333 | V119: 518.5185185 | W119: 892.5925926
S120: 109 | T120: 41.30874664 | U120: 300.4272483 | V120: 600.8544966 | W120: 942.5904916
S121: 110 | T121: 40.74074074 | U121: 333.3333333 | V121: 518.5185185 | W121: 892.5925926
S122: 111 | T122: 48.14814815 | U122: 333.3333333 | V122: 518.5185185 | W122: 900
S123: 112 | T123: 40.30956655 | U123: 302.3217491 | V123: 470.2782764 | W123: 812.909592
S124: 113 | T124: 48.14814815 | U124: 333.3333333 | V124: 518.5185185 | W124: 900
S125: 114 | T125: 36.66666667 | U125: 333.3333333 | V125: 400 | W125: 770
S126: 115 | T126: 45.83333333 | U126: 333.3333333 | V126: 666.6666667 | W126: 1045.833333
S127: 116 | T127: 43.88418404 | U127: 329.1313803 | V127: 511.9821471 | W127: 884.9977114
S128: 117 | T128: 54.16666667 | U128: 333.3333333 | V128: 666.6666667 | W128: 1054.166667
S129: 118 | T129: 38.88888889 | U129: 333.3333333 | V129: 222.2222222 | W129: 594.4444444
S130: 119 | T130: 36.36363636 | U130: 333.3333333 | V130: 303.030303 | W130: 672.7272727
S131: 120 | T131: 36.66666667 | U131: 300 | V131: 466.6666667 | W131: 803.3333333
S132: 121 | T132: 49.62674601 | U132: 305.39536 | V132: 610.7907201 | W132: 965.8128261
S133: 122 | T133: 44.44444444 | U133: 333.3333333 | V133: 518.5185185 | W133: 896.2962963
S134: 123 | T134: 37.27525897 | U134: 304.9793915 | V134: 474.4123868 | W134: 816.6670374
S135: 124 | T135: 45.45312447 | U135: 314.6754771 | V135: 489.4951866 | W135: 849.6237883
S136: 125 | T136: 40.95165235 | U136: 327.6132188 | V136: 655.2264376 | W136: 1023.791309
S137: 126 | T137: 36.66666667 | U137: 333.3333333 | V137: 400 | W137: 770
S138: 127 | T138: 44.1851046 | U138: 331.3882845 | V138: 515.492887 | W138: 891.066276
S139: 128 | T139: 51.85185185 | U139: 333.3333333 | V139: 518.5185185 | W139: 903.7037037
S140: 129 | T140: 43.33333333 | U140: 333.3333333 | V140: 400 | W140: 776.6666667
S141: 130 | T141: 39.39393939 | U141: 333.3333333 | V141: 303.030303 | W141: 675.7575758
S142: =+S141+1 -> 131 | T142: 41.7396634 | U142: 288.9669005 | V142: 449.5040674 | W142: 780.2106313
S143: 132 | T143: 43.20493885 | U143: 308.6067061 | V143: 370.3280473 | W143: 722.1396923
S144: 133 | T144: 44.44444444 | U144: 333.3333333 | V144: 518.5185185 | W144: 896.2962963
S145: 134 | T145: 44.44444444 | U145: 333.3333333 | V145: 518.5185185 | W145: 896.2962963
S146: 135 | T146: 48.76094887 | U146: 325.0729925 | V146: 650.145985 | W146: 1023.979926
S147: 136 | T147: 38.35256923 | U147: 306.8205539 | V147: 613.6411077 | W147: 958.8142308
S148: 137 | T148: 39.91447176 | U148: 307.0343982 | V148: 368.4412778 | W148: 715.3901478
S149: 138 | T149: 43.33333333 | U149: 333.3333333 | V149: 400 | W149: 776.6666667
S150: 139 | T150: 39.87346026 | U150: 318.9876821 | V150: 637.9753642 | W150: 996.8365065
S151: 140 | T151: 38.88888889 | U151: 333.3333333 | V151: 222.2222222 | W151: 594.4444444
S152: 141 | T152: 37.58577017 | U152: 313.2147514 | V152: 375.8577017 | W152: 726.6582233
S153: 142 | T153: 36.66666667 | U153: 333.3333333 | V153: 400 | W153: 770
S154: 143 | T154: 40.74074074 | U154: 333.3333333 | V154: 518.5185185 | W154: 892.5925926
S155: 144 | T155: 40.74074074 | U155: 333.3333333 | V155: 518.5185185 | W155: 892.5925926
S156: 145 | T156: 40 | U156: 333.3333333 | V156: 400 | W156: 773.3333333
S157: 146 | T157: 40 | U157: 333.3333333 | V157: 400 | W157: 773.3333333
S158: 147 | T158: 43.33333333 | U158: 333.3333333 | V158: 400 | W158: 776.6666667
S159: 148 | T159: 41.34859803 | U159: 330.7887842 | V159: 661.5775684 | W159: 1033.714951
S160: 149 | T160: 61.9047619 | U160: 285.7142857 | V160: 952.3809524 | W160: 1300

Sheet Sheet2

Sheet Sheet3
